bitfinex/quotes_SOLUSD_20251224
["timestamp","ask_amount","ask_price","bid_price","bid_amount"]
[1766583290774,8.19873739,121.97,121.94,0.71]
[1766583291001,8.69873739,121.97,121.94,0.71]
[1766583291202,10.3877909,121.97,121.94,0.71]
[1766583291504,12.12672647,121.95,121.92,0.71]
[1766583291708,10.43767296,121.95,121.92,0.71]
[1766583292376,19.1380827,121.95,121.92,0.71]
[1766583292684,19.1380827,121.95,121.9,0.71]
[1766583292685,2.18905351,121.94,121.9,0.71]
[1766583293091,0.5,121.94,121.91,0.71]
[1766583294531,8.70130264,121.94,121.91,0.71]
[1766583294692,8.20035353,121.95,121.92,0.71]
[1766583295681,9.88940704,121.95,121.92,0.71]
[1766583296086,10.38940704,121.95,121.92,0.71]
[1766583298185,8.70035353,121.95,121.92,0.71]
[1766583298386,10.38940704,121.95,121.92,0.71]
[1766583299019,8.70035353,121.95,121.92,0.71]
[1766583300406,10.38940704,121.95,121.92,0.71]
[1766583301708,0.67,121.93,121.9,14.98]
[1766583302289,0.67,121.93,121.89,1.68905351]
[1766583302591,0.67,121.93,121.89,16.66905351]
[1766583302804,1.68905351,121.94,121.89,24.87302549]
[1766583303106,0.67,121.94,121.9,1.68905351]
[1766583303310,8.20041209,121.95,121.91,1.68905351]
[1766583303511,10.43767296,121.95,121.92,1.68905351]
[1766583304013,10.43767296,121.95,121.93,0.71]
[1766583305002,18.63798744,121.95,121.93,0.71]
[1766583306218,19.30798744,121.95,121.92,0.71]
[1766583306611,20.99704095,121.95,121.92,0.71]
[1766583308207,21.94662041,121.95,121.92,0.71]
[1766583308412,19.30798744,121.95,121.92,0.71]
[1766583309910,21.94662041,121.95,121.92,0.71]
[1766583310213,0.66,121.94,121.91,15.66]
[1766583310589,21.93662041,121.95,121.92,0.68]
[1766583318010,3.29863297,121.94,121.91,0.68]
[1766583318918,3.29863297,121.93,121.9,14.98]
[1766583319316,3.29863297,121.93,121.9,15.66]
[1766583320107,3.29863297,121.93,121.91,0.68]
[1766583320312,11.49978436,121.94,121.91,0.68]
[1766583323022,10.43767296,121.92,121.89,0.68]
[1766583323224,10.43767296,121.92,121.9,0.68]
[1766583324730,18.63977814,121.92,121.9,0.68]
[1766583326605,19.29977814,121.92,121.9,0.68]
[1766583326806,18.63977814,121.92,121.9,0.68]
[1766583330133,19.29977814,121.92,121.88,15.66]
[1766583330710,19.29977814,121.92,121.88,14.98]
[1766583330933,19.29977814,121.92,121.89,0.68]
[1766583332626,0.66,121.9,121.87,0.78]
[1766583333130,3.29863297,121.9,121.87,0.78]
[1766583335228,11.50214958,121.9,121.87,0.78]
[1766583335746,8.86351661,121.9,121.87,0.78]
[1766583340027,3.29863297,121.89,121.87,0.1]
[1766583340245,10.43767296,121.87,121.83,0.1]
[1766583340425,13.73630593,121.87,121.83,0.79]
[1766583340627,3.29863297,121.86,121.83,0.79]
[1766583341135,0.66,121.86,121.83,0.79]
[1766583341331,3.29863297,121.85,121.83,1e-08]
[1766583341521,0.66,121.85,121.83,1e-08]
[1766583341725,3.29863297,121.86,121.83,1e-08]
[1766583341941,8.20681165,121.85,121.83,0.69000001]
[1766583343042,11.50544462,121.85,121.8,17.61863297]
[1766583343250,8.20681165,121.85,121.79,8.21061039]
[1766583343433,0.66,121.8,121.77,0.1]
[1766583343632,0.66,121.81,121.77,2.73863297]
[1766583343828,13.73630593,121.82,121.77,25.93062553]
[1766583344242,3.29863297,121.81,121.77,15.08]
[1766583344422,2.63863297,121.8,121.77,0.1]
[1766583344626,3.29863297,121.79,121.77,0.1]
[1766583345026,2.63863297,121.78,121.77,1e-08]
[1766583345221,3.29863297,121.78,121.77,1e-08]
[1766583345428,0.66,121.78,121.77,1e-08]
[1766583346150,3.29863297,121.78,121.77,1e-08]
[1766583346326,13.73630593,121.79,121.76,4.11757532]
[1766583346928,19.30881327,121.79,121.76,4.11757532]
[1766583347130,11.09767296,121.79,121.76,4.80757532]
[1766583347332,0.66,121.84,121.79,0.69]
[1766583347529,15.0,121.95,121.77,14.98]
[1766583347530,20.51241588,121.88,121.81,0.69]
[1766583347731,0.66,121.89,121.83,2.63863297]
[1766583348058,2.63863297,121.88,121.84,0.69]
[1766583349030,3.29863297,121.88,121.84,0.69]
[1766583349344,2.63863297,121.87,121.84,0.69]
[1766583349557,3.29863297,121.88,121.84,0.69]
[1766583349737,0.66,121.88,121.84,0.69]
[1766583349926,3.29863297,121.88,121.84,0.69]
[1766583350926,8.20546483,121.87,121.84,0.69]
[1766583351724,10.8440978,121.87,121.84,0.69]
[1766583351922,8.20546483,121.87,121.84,0.69]
[1766583352448,10.8434928,121.88,121.84,0.69]
[1766583352823,8.20485983,121.88,121.84,2.63863297]
[1766583353029,8.20485983,121.88,121.85,0.69]
[1766583353224,10.8434928,121.88,121.85,0.69]
[1766583353433,8.20485983,121.88,121.85,0.69]
[1766583353625,23.74673297,121.94,121.85,2.63863297]
[1766583353626,14.98,121.94,121.85,2.63863297]
[1766583353833,3.29863297,121.92,121.88,0.69]
[1766583354045,10.43767296,121.9,121.88,0.69]
[1766583354433,3.29863297,121.92,121.88,0.69]
[1766583354857,0.66,121.92,121.88,0.69]
[1766583355030,8.20277253,121.91,121.88,0.69]
[1766583355429,8.20277253,121.91,121.86,17.61863297]
[1766583355430,2.63863297,121.9,121.86,15.67]
[1766583356231,2.63863297,121.9,121.87,0.69]
[1766583357228,0.66,121.88,121.84,3.32863297]
[1766583357428,3.29863297,121.88,121.85,14.98]
[1766583358852,31.35304759,121.89,121.86,0.69]
[1766583360359,8.20546483,121.87,121.85,14.98]
[1766583361134,8.20546483,121.87,121.85,15.67]
[1766583361334,11.50363164,121.88,121.85,15.67]
[1766583361650,10.84363164,121.88,121.85,15.67]
[1766583361960,8.20499867,121.88,121.86,0.69]
[1766583362166,8.20435057,121.89,121.86,0.69]
[1766583362736,18.64114277,121.9,121.87,0.69]
[1766583362931,29.36499466,121.93,121.89,0.69]
[1766583363136,42.44130059,121.93,121.89,0.69]
[1766583363342,29.36499466,121.93,121.89,0.69]
[1766583363545,29.36499466,121.93,121.9,0.69]
[1766583363745,28.70499466,121.93,121.9,0.69]
[1766583364338,8.20142704,121.93,121.9,0.69]
[1766583366762,21.2766508,121.95,121.91,14.98]
[1766583366970,18.63801783,121.95,121.92,0.69]
[1766583367268,41.7768558,121.95,121.92,0.69]
[1766583367466,0.66,121.94,121.89,14.98]
[1766583367649,3.29863297,121.94,121.9,0.68]
[1766583367966,2.34920185,121.94,121.9,0.68]
[1766583368966,9.89062889,121.93,121.9,0.68]
[1766583369269,1.68920185,121.91,121.88,0.68]
[1766583370058,2.34920185,121.91,121.88,0.68]
[1766583370258,0.66,121.91,121.88,0.68]
[1766583370466,2.34920185,121.91,121.88,0.68]
[1766583370848,10.55242841,121.91,121.88,0.68]
[1766583371867,8.86322656,121.91,121.88,0.68]
[1766583372059,10.55242841,121.91,121.88,0.68]
[1766583372460,1.68920185,121.9,121.88,0.68]
[1766583373172,9.89292971,121.9,121.88,0.68]
[1766583373764,10.55292971,121.9,121.87,14.98]
[1766583373970,8.86372786,121.9,121.87,14.98]
[1766583374170,8.20372786,121.9,121.87,15.66]
[1766583374474,9.89292971,121.9,121.88,0.68]
[1766583375868,9.89292971,121.9,121.87,15.66]
[1766583376067,1.68920185,121.89,121.87,15.66]
[1766583376572,1.68920185,121.89,121.87,0.68]
[1766583377850,8.20479159,121.88,121.85,15.66]
[1766583378353,9.89399344,121.88,121.85,15.66]
[1766583380167,9.89399344,121.88,121.85,14.98]
[1766583380374,8.20479159,121.88,121.86,0.68]
[1766583381179,9.89399344,121.88,121.86,0.68]
[1766583384277,8.20479159,121.88,121.86,0.68]
[1766583384480,8.20479159,121.88,121.85,15.66]
[1766583384979,9.89399344,121.88,121.85,15.66]
[1766583385179,8.20479159,121.88,121.85,15.66]
[1766583385479,9.89399344,121.88,121.85,15.66]
[1766583386272,8.86432903,121.89,121.85,15.66]
[1766583386465,10.55353088,121.89,121.85,15.66]
[1766583388181,8.86432903,121.89,121.85,15.66]
[1766583388366,8.86432903,121.89,121.86,0.68]
[1766583388367,1.68920185,121.89,121.86,0.68]
[1766583389168,2.34920185,121.89,121.86,0.68]
[1766583389889,0.66,121.89,121.86,0.68]
[1766583391579,0.66,121.89,121.85,23.18650642]
[1766583391879,0.66,121.89,121.86,0.68]
[1766583393390,9.8929226,121.9,121.86,0.68]
[1766583393766,1.68920185,121.9,121.87,0.68]
[1766583393967,20.98999302,121.91,121.87,0.68]
[1766583395871,20.32999302,121.91,121.87,0.68]
[1766583396072,2.34920185,121.9,121.87,0.68]
[1766583396787,18.64079117,121.91,121.87,8.20540662]
[1766583397083,20.32999302,121.91,121.88,0.67]
[1766583397281,21.00999302,121.91,121.88,0.67]
[1766583399775,19.32079117,121.91,121.88,0.67]
[1766583399974,21.00999302,121.91,121.88,0.67]
[1766583401075,1.68920185,121.9,121.88,0.67]
[1766583402983,19.32094362,121.91,121.88,0.67]
[1766583403191,1.68920185,121.9,121.88,0.67]
[1766583404000,21.01014547,121.91,121.88,0.67]
[1766583404604,18.64094362,121.91,121.88,0.67]
[1766583404793,8.20231724,121.92,121.89,0.67]
[1766583404998,8.20231724,121.92,121.89,1.68920185]
[1766583405182,8.20163134,121.93,121.9,0.67]
[1766583405570,8.20031712,121.95,121.91,16.66920185]
[1766583405779,0.68,121.96,121.93,0.67]
[1766583406097,10.56888936,121.96,121.93,0.67]
[1766583406902,8.87968751,121.96,121.93,0.67]
[1766583407316,20.32585938,121.97,121.93,0.67]
[1766583407596,9.88688892,121.99,121.95,0.67]
[1766583407786,8.87768707,121.99,121.95,0.67]
[1766583407988,10.56688892,121.99,121.95,0.67]
[1766583408694,2.36920185,121.98,121.95,0.67]
[1766583409895,10.56749254,121.98,121.95,0.67]
[1766583411799,8.87829069,121.98,121.95,0.67]
[1766583412006,10.56749254,121.98,121.95,0.67]
[1766583413694,8.87829069,121.98,121.95,0.67]
[1766583414903,10.56749254,121.98,121.95,0.67]
[1766583415210,1.68920185,121.96,121.93,0.67]
[1766583415410,2.36920185,121.97,121.93,0.67]
[1766583417609,10.56847856,121.97,121.93,0.67]
[1766583419412,8.87927671,121.97,121.93,0.67]
[1766583419612,10.56847856,121.97,121.93,0.67]
[1766583421091,8.87946076,121.96,121.93,0.67]
[1766583421614,0.68,121.95,121.91,0.67]
[1766583421819,2.36920185,121.95,121.91,0.67]
[1766583423417,10.56938941,121.95,121.91,0.67]
[1766583423615,2.36920185,121.94,121.91,0.67]
[1766583423925,1.68920185,121.93,121.91,0.67]
[1766583424400,2.36920185,121.94,121.91,0.67]
[1766583425001,0.68,121.94,121.91,0.67]
[1766583425209,2.36920185,121.94,121.91,0.67]
[1766583425710,0.68,121.94,121.91,0.67]
[1766583425913,2.36920185,121.94,121.91,0.67]
[1766583426723,10.57003656,121.94,121.91,0.67]
[1766583427928,3.31926296,121.94,121.91,0.67]
[1766583428407,0.68,121.94,121.91,0.67]
[1766583428607,3.31926296,121.94,121.91,0.67]
[1766583429707,11.52022794,121.94,121.91,0.67]
[1766583434827,8.88096498,121.94,121.91,0.67]
[1766583435023,11.52022794,121.94,121.91,0.67]
[1766583438316,3.31926296,121.94,121.91,0.67]
[1766583439331,2.63926296,121.94,121.91,0.67]
[1766583439534,3.35926296,121.96,121.92,0.71]
[1766583439711,0.72,121.96,121.92,0.71]
[1766583439910,3.35926296,121.96,121.92,0.71]
[1766583440331,3.35926296,121.96,121.92,8.91194431]
[1766583440637,11.55876671,121.96,121.92,8.91194431]
[1766583440811,3.35926296,121.95,121.92,0.71]
[1766583441741,3.35926296,121.94,121.91,14.98]
[1766583442040,3.35926296,121.94,121.91,15.69]
[1766583444658,2.63926296,121.94,121.92,0.71]
[1766583445033,11.55960723,121.95,121.92,0.71]
[1766583445418,2.63926296,121.94,121.92,0.71]
[1766583445711,3.35926296,121.94,121.91,15.69]
[1766583445917,3.35926296,121.94,121.92,0.71]
[1766583446236,2.63926296,121.94,121.92,0.71]
[1766583448544,11.55960723,121.95,121.92,0.71]
[1766583448936,3.35926296,121.95,121.92,0.71]
[1766583449244,2.63926296,121.95,121.92,0.71]
[1766583449836,8.91945584,121.96,121.92,0.71]
[1766583450033,2.63926296,121.95,121.92,0.71]
[1766583450331,3.35926296,121.95,121.92,0.71]
[1766583450647,11.55936167,121.95,121.92,0.71]
[1766583451040,3.35926296,121.95,121.92,0.71]
[1766583453640,0.72,121.95,121.92,8.91197655]
[1766583453835,3.35926296,121.95,121.93,0.71]
[1766583454233,2.63926296,121.95,121.93,0.71]
[1766583455050,3.35926296,121.95,121.91,23.18248937]
[1766583455231,0.72,121.95,121.92,0.71]
[1766583455552,3.35926296,121.95,121.92,0.71]
[1766583458854,11.5593837,121.95,121.92,0.71]
[1766583461561,8.92012074,121.95,121.92,0.71]
[1766583461765,11.5593837,121.95,121.92,0.71]
[1766583462563,11.5593837,121.95,121.9,2.63926296]
[1766583462564,0.71,121.93,121.9,15.7]
[1766583462738,0.71,121.93,121.9,14.98]
[1766583462934,0.71,121.93,121.91,0.72]
[1766583463134,2.63926296,121.94,121.91,0.72]
[1766583463435,11.5493837,121.95,121.91,0.72]
[1766583463848,10.8393837,121.95,121.91,0.72]
[1766583464043,0.71,121.94,121.91,0.72]
[1766583465545,3.34926296,121.94,121.91,0.72]
[1766583469363,0.71,121.94,121.91,0.72]
[1766583469564,10.8393837,121.95,121.91,0.72]
[1766583469744,11.5493837,121.95,121.91,0.72]
[1766583470657,0.71,121.95,121.91,8.20270415]
[1766583470884,0.71,121.95,121.92,0.72]
[1766583471361,11.54938553,121.95,121.92,0.72]
[1766583476576,0.71,121.95,121.92,0.72]
[1766583477180,11.54939754,121.95,121.92,0.72]
[1766583479489,8.91013458,121.95,121.92,0.72]
[1766583480280,2.63926296,121.96,121.93,0.72]
[1766583480281,8.19940964,121.96,121.93,0.72]
[1766583480584,11.5486726,121.96,121.93,0.72]
[1766583484581,19.34680596,121.97,121.94,0.72]
[1766583484789,21.98606892,121.97,121.94,0.72]
[1766583485071,18.63680596,121.97,121.94,0.72]
[1766583485272,18.63680596,121.97,121.93,17.61926296]
[1766583485273,0.71,121.94,121.92,0.72]
[1766583485478,3.34926296,121.94,121.91,15.7]
[1766583485694,2.63926296,121.93,121.91,15.7]
[1766583486401,11.55043485,121.94,121.91,15.7]
[1766583488598,8.91117189,121.94,121.91,15.7]
[1766583488787,0.71,121.94,121.91,14.98]
[1766583488988,0.71,121.94,121.92,0.72]
[1766583490491,9.88937072,121.95,121.92,0.72]
[1766583490692,10.58937072,121.95,121.92,0.72]
[1766583491203,8.90039588,121.95,121.92,0.72]
[1766583491379,10.58937072,121.95,121.92,0.72]
[1766583491981,2.38897484,121.94,121.92,0.72]
[1766583492205,0.7,121.94,121.92,0.72]
[1766583492393,2.38897484,121.94,121.92,0.72]
[1766583495689,0.7,121.94,121.92,0.72]
[1766583495898,10.58937072,121.95,121.92,0.72]
[1766583496492,1.68897484,121.95,121.92,0.72]
[1766583497503,117.58,121.99,121.92,0.72]
[1766583497504,1.68897484,121.94,121.92,0.72]
[1766583498008,1.68897484,121.95,121.92,0.72]
[1766583498204,1.68897484,121.96,121.92,0.72]
[1766583498518,2.06897484,121.98,121.93,0.72]
[1766583498691,2.06897484,121.98,121.95,0.72]
[1766583499203,2.06897484,121.99,121.95,0.72]
[1766583499418,15.70154411,122.02,121.96,0.72]
[1766583499419,2.06897484,122.0,121.96,0.72]
[1766583499930,2.06897484,122.0,121.97,0.72]
[1766583500610,1.68897484,122.0,121.97,0.72]
[1766583500927,2.06897484,122.01,121.97,0.72]
[1766583501598,0.38,122.01,121.97,0.72]
[1766583501801,2.06897484,122.01,121.97,0.72]
[1766583502111,0.38,122.01,121.98,1.68897484]
[1766583502508,0.38,122.01,121.97,2.40897484]
[1766583505624,0.38,122.01,121.97,0.72]
[1766583505817,0.38,122.01,121.97,2.40897484]
[1766583506723,2.26897484,122.02,121.98,0.72]
[1766583506915,0.58,122.02,121.98,1.68897484]
[1766583507222,0.58,122.02,121.99,0.72]
[1766583508226,0.38,122.01,121.96,0.72]
[1766583508425,0.38,122.0,121.97,0.72]
[1766583508827,0.38,121.99,121.96,0.72]
[1766583509129,1.68897484,122.0,121.96,0.72]
[1766583509130,2.06897484,122.0,121.96,0.72]
[1766583509326,0.38,122.0,121.97,0.72]
[1766583517928,10.43767296,122.01,121.97,8.19863731]
[1766583518112,0.58,122.02,121.99,0.71]
[1766583518516,0.2,122.02,122.0,0.71]
[1766583522432,10.43767296,122.04,122.02,0.71]
[1766583523719,12.7066478,122.04,122.0,0.71]
[1766583533649,0.58,122.02,121.99,0.71]
[1766583533853,2.26897484,122.02,121.99,0.71]
[1766583534855,2.26897484,122.02,121.98,15.67]
[1766583534856,0.58,122.01,121.98,15.67]
[1766583535352,0.58,122.03,121.99,0.71]
[1766583535554,0.58,122.03,122.0,0.71]
[1766583544956,0.58,122.03,121.99,0.71]
[1766583545157,0.58,122.0,121.96,0.71]
[1766583545775,0.58,122.0,121.97,0.71]
[1766583547298,10.43767296,122.01,121.97,0.71]
[1766583547580,10.43767296,122.01,121.98,0.71]
[1766583547581,11.01767296,122.01,121.98,0.71]
[1766583550679,10.43767296,122.01,121.98,0.71]
[1766583551566,127.44891673,122.03,121.98,1.68897484]
[1766583551754,113.61767296,122.03,122.0,0.71]
[1766583552578,0.58,122.03,122.0,0.71]
[1766583553685,13.65286974,122.04,122.0,0.71]
[1766583555068,11.01767296,122.04,122.0,0.71]
[1766583555279,13.65286974,122.04,122.0,0.71]
[1766583556807,11.01767296,122.04,122.01,0.71]
[1766583557104,10.43767296,122.04,122.01,2.63519678]
[1766583557269,10.43767296,122.04,122.02,0.71]
[1766583558864,2.63519678,122.06,122.02,0.71]
[1766583559068,10.43767296,122.06,122.03,0.71]
[1766583559590,0.78,122.07,122.04,0.71]
[1766583559790,11.21767296,122.07,122.04,0.71]
[1766583560288,10.63767296,122.07,122.04,2.63519678]
[1766583560486,0.2,122.07,122.05,0.71]
[1766583561790,0.2,122.08,122.06,0.71]
[1766583562789,3.52519678,122.08,122.04,0.71]
[1766583570001,0.89,122.08,122.04,0.71]
[1766583570204,3.52519678,122.08,122.04,0.71]
[1766583572095,2.83519678,122.08,122.04,0.71]
[1766583572299,3.32519678,122.07,122.04,0.71]
[1766583572494,3.32519678,122.07,121.99,103.88550713]
[1766583572495,0.69,122.05,121.99,0.71]
[1766583572696,3.32519678,122.04,122.01,0.71]
[1766583575200,0.69,122.04,122.01,0.71]
[1766583575404,3.32519678,122.04,122.01,0.71]
[1766583575786,2.63519678,122.03,122.01,0.71]
[1766583576493,3.30519678,122.02,121.99,0.7]
[1766583578310,10.43767296,122.03,122.0,0.66]
[1766583578487,13.77286974,122.03,122.0,0.66]
[1766583578690,13.77286974,122.03,121.99,0.66]
[1766583579415,3.33519678,122.0,121.96,0.66]
[1766583579583,2.63519678,121.99,121.96,0.66]
[1766583580712,0.7,122.0,121.96,0.66]
[1766583581010,2.63519678,121.99,121.96,0.66]
[1766583584394,3.33519678,121.99,121.96,0.66]
[1766583585493,0.7,121.99,121.96,0.66]
[1766583585694,3.33519678,121.99,121.96,0.66]
[1766583586413,0.7,122.0,121.96,0.66]
[1766583586614,2.63519678,121.99,121.96,0.66]
[1766583587000,3.33519678,122.0,121.96,0.66]
[1766583587197,24.2105427,122.01,121.97,0.66]
[1766583587513,10.43767296,122.01,121.99,0.66]
[1766583587702,2.63519678,122.03,121.99,0.66]
[1766583587886,3.33519678,122.04,122.0,0.66]
[1766583593903,0.7,122.03,122.0,0.66]
[1766583594302,0.7,122.03,121.99,3.29519678]
[1766583594710,0.7,122.03,122.0,3.29519678]
[1766583595723,2.63519678,122.04,122.0,3.29519678]
[1766583595924,3.33519678,122.04,122.0,3.29519678]
[1766583596324,0.7,122.04,122.0,3.29519678]
[1766583596620,3.33519678,122.04,122.0,2.63519678]
[1766583596823,3.33519678,122.04,122.01,0.66]
[1766583597122,0.7,122.04,122.01,0.66]
[1766583600305,0.7,122.04,122.0,3.29519678]
[1766583600710,0.7,122.04,122.01,3.29519678]
[1766583601927,0.7,122.04,122.0,3.29519678]
[1766583604930,10.43767296,122.02,121.95,10.43767296]
[1766583605107,10.43767296,122.02,121.98,3.29519678]
[1766583605312,11.13767296,122.01,121.98,0.66]
[1766583605727,0.7,122.01,121.98,3.29519678]
[1766583606739,0.7,122.01,121.98,0.66]
[1766583606917,0.7,122.01,121.98,3.29519678]
[1766583607532,8.19876199,122.04,122.01,0.67]
[1766583607533,8.85876199,122.04,122.01,0.67]
[1766583607741,0.66,122.04,122.02,2.63519678]
[1766583609436,0.66,122.04,122.01,3.30519678]
[1766583609731,0.66,122.04,121.99,0.67]
[1766583609933,0.66,122.03,121.99,3.30519678]
[1766583611218,0.66,122.03,122.0,0.67]
[1766583612435,0.66,122.03,121.98,0.67]
[1766583612625,11.09767296,122.02,121.98,3.30519678]
[1766583613741,11.09767296,122.02,121.99,2.63519678]
[1766583614038,11.09767296,122.02,121.99,1.68685634]
[1766583615627,11.09767296,122.02,121.99,2.35685634]
[1766583617048,11.09767296,122.02,121.99,0.67]
[1766583617434,10.43767296,122.02,121.99,0.67]
[1766583617924,11.09767296,122.02,121.99,0.67]
[1766583623033,0.66,122.01,121.98,2.35685634]
[1766583624153,0.66,122.01,121.98,1.68685634]
[1766583624353,0.66,122.01,121.99,0.67]
[1766583627264,11.09767296,122.02,121.99,0.67]
[1766583627763,0.66,122.01,121.97,1.68685634]
[1766583628056,0.66,122.01,121.98,0.67]
[1766583629445,0.66,122.01,121.98,2.35685634]
[1766583630054,0.66,122.01,121.99,0.67]
[1766583632156,0.66,122.01,121.98,0.67]
[1766583636971,0.66,122.01,121.97,2.39685634]
[1766583637649,0.7,122.0,121.97,0.71]
[1766583638156,0.7,122.01,121.98,0.71]
[1766583640268,1.68685634,122.01,121.96,2.39685634]
[1766583640451,0.7,122.0,121.97,2.39685634]
[1766583640771,0.7,122.0,121.98,0.71]
[1766583642254,0.7,122.0,121.97,0.71]
[1766583642550,0.7,122.0,121.97,2.39685634]
[1766583646373,10.43767296,122.02,121.99,0.71]
[1766583646742,11.13767296,122.02,121.99,0.71]
[1766583650590,8.19913757,122.03,122.0,0.71]
[1766583650591,8.89913757,122.03,122.0,0.71]
[1766583650756,0.7,122.03,122.0,0.71]
[1766583652454,2.38685634,122.04,122.0,0.71]
[1766583652661,0.7,122.04,122.01,0.71]
[1766583656697,2.38685634,122.04,122.01,0.71]
[1766583660999,12.8245293,122.04,122.01,0.71]
[1766583662193,0.7,122.03,122.01,0.71]
[1766583664103,0.7,122.03,122.0,0.71]
[1766583666212,2.38685634,122.04,122.0,0.71]
[1766583666709,11.13767296,122.04,122.01,0.71]
[1766583667901,0.68,122.03,122.0,0.69]
[1766583668281,0.68,122.02,121.98,2.37685634]
[1766583668606,0.68,122.02,121.96,0.69]
[1766583668607,0.68,121.99,121.96,0.69]
[1766583672907,1.68685634,121.99,121.96,0.69]
[1766583673215,0.68,121.98,121.96,0.69]
[1766583674817,0.68,121.98,121.94,2.37685634]
[1766583675312,0.68,121.97,121.94,0.69]
[1766583676003,0.68,121.97,121.93,3.32797361]
[1766583676189,0.68,121.97,121.93,0.69]
[1766583676396,0.68,121.97,121.93,3.32797361]
[1766583676799,0.68,121.97,121.94,0.69]
[1766583677428,13.75564657,121.98,121.94,0.69]
[1766583678098,0.68,121.97,121.94,0.69]
[1766583682623,3.31797361,121.97,121.94,0.69]
[1766583683135,0.68,121.96,121.94,0.69]
[1766583684127,3.31797361,121.97,121.94,0.69]
[1766583684349,2.63797361,121.97,121.94,0.69]
[1766583684632,0.68,121.96,121.93,0.69]
[1766583684810,10.43767296,121.98,121.93,0.69]
[1766583685007,3.31797361,121.97,121.93,0.69]
[1766583686137,8.30193793,122.0,121.93,0.69]
[1766583686138,10.43767296,121.99,121.94,0.69]
[1766583686430,2.63797361,121.98,121.94,0.69]
[1766583687204,11.11767296,121.99,121.94,8.20064945]
[1766583687405,13.75564657,121.99,121.95,0.69]
[1766583689718,13.07564657,121.99,121.95,0.69]
[1766583690709,10.43767296,121.99,121.95,0.69]
[1766583690908,13.07564657,121.99,121.95,0.69]
[1766583691300,10.43767296,121.99,121.95,10.83780569]
[1766583691505,2.63797361,122.01,121.97,0.68]
[1766583693530,13.07564657,122.01,121.97,0.68]
[1766583694836,10.43767296,122.01,121.97,14.98]
[1766583695027,13.07564657,122.01,121.98,0.68]
[1766583695916,13.75564657,122.01,121.98,0.68]
[1766583697140,11.11767296,122.01,121.98,0.68]
[1766583697339,13.75564657,122.01,121.98,0.68]
[1766583700135,13.07564657,122.01,121.98,0.68]
[1766583702043,13.74564657,122.01,121.98,0.68]
[1766583702746,10.43767296,122.02,121.98,0.68]
[1766583702929,2.63797361,122.01,121.98,0.68]
[1766583704150,3.30797361,122.01,121.98,0.68]
[1766583707155,3.30797361,122.0,121.97,14.98]
[1766583707355,3.30797361,122.0,121.96,8.87937798]
[1766583707652,0.67,122.0,121.97,0.68]
[1766583712446,10.43767296,122.01,121.98,0.68]
[1766583712846,11.10767296,122.01,121.98,0.68]
[1766583717345,0.67,122.03,122.0,0.68]
[1766583718863,2.63797361,122.03,121.98,25.79596471]
[1766583719051,3.30797361,122.02,121.98,15.64]
[1766583720170,0.67,122.01,121.98,0.68]
[1766583724474,0.67,122.01,121.99,0.68]
[1766583724645,0.67,122.02,121.99,0.68]
[1766583730454,0.69,122.03,121.99,0.68]
[1766583732176,0.69,122.03,121.98,10.83594937]
[1766583732353,0.69,122.03,121.98,11.51594937]
[1766583732677,0.69,122.03,121.98,8.87797576]